bitfinex/quotes_SOLUSD_20250815
["timestamp","ask_amount","ask_price","bid_price","bid_amount"]
[1755280353026,6.08909247,185.56,185.52,0.03]
[1755280353330,0.7,185.55,185.54,5.53907944]
[1755280353509,6.08909247,185.56,185.54,5.53907944]
[1755280353902,5.38851169,185.58,185.55,5.53907944]
[1755280354103,5.38851169,185.58,185.52,0.73]
[1755280354303,0.7,185.57,185.52,0.73]
[1755280354508,6.08910473,185.56,185.54,5.53907944]
[1755280354726,5.38888285,185.57,185.55,5.53907944]
[1755280354903,5.38888285,185.57,185.52,0.73]
[1755280354904,5.38888285,185.57,185.56,5.53907944]
[1755280355097,5.38888285,185.57,185.55,5.53907944]
[1755280356048,5.3885233,185.58,185.56,5.53907944]
[1755280356338,133.9,185.61,185.57,6.23907944]
[1755280356518,5.38706028,185.63,185.58,0.7]
[1755280356837,39.76,185.64,185.59,0.7]
[1755280357034,4.01717716,185.63,185.62,5.53907944]
[1755280357224,7.63251532,185.63,185.62,5.53907944]
[1755280357423,4.01717716,185.63,185.62,5.53907944]
[1755280357721,45.84682971,185.64,185.62,5.53907944]
[1755280357920,0.7,185.63,185.61,5.53907944]
[1755280358107,0.7,185.62,185.61,5.53907944]
[1755280358311,0.7,185.62,185.57,0.7]
[1755280358521,6.0873505,185.62,185.61,5.53907944]
[1755280358733,0.7,185.62,185.61,5.53907944]
[1755280359314,0.7,185.62,185.57,0.7]
[1755280359614,4.31959132,185.61,185.59,5.53907944]
[1755280359818,0.7,185.61,185.59,5.53907944]
[1755280360424,6.08778799,185.61,185.59,5.53907944]
[1755280360830,5.38738274,185.62,185.6,5.53907944]
[1755280361027,6.08738274,185.62,185.61,5.53907944]
[1755280361224,9.70752702,185.62,185.61,5.53907944]
[1755280361422,13.73091127,185.62,185.6,5.53907944]
[1755280361635,6.08738274,185.62,185.6,5.53907944]
[1755280362342,0.7,185.61,185.6,5.53907944]
[1755280362729,5.38738274,185.62,185.6,5.53907944]
[1755280362936,6.08738274,185.62,185.6,5.53907944]
[1755280363125,3.62174057,185.61,185.6,5.53907944]
[1755280363326,3.6213908,185.61,185.6,5.53907944]
[1755280363644,0.8,185.63,185.6,6.23907944]
[1755280363950,0.8,185.63,185.62,5.53907944]
[1755280364113,0.8,185.63,185.62,11.62642994]
[1755280364319,0.8,185.63,185.62,5.53907944]
[1755280366058,5.12255933,185.63,185.62,5.53907944]
[1755280366553,14.53494119,185.63,185.57,26.67]
[1755280366732,3.62255933,185.62,185.6,5.53907944]
[1755280366932,4.32359783,185.61,185.59,5.53907944]
[1755280367146,0.7,185.61,185.59,5.53907944]
[1755280367339,46.62706028,185.63,185.6,5.53907944]
[1755280367541,7.65132842,185.62,185.61,5.53907944]
[1755280367854,7.65132842,185.62,185.58,0.67]
[1755280368058,3.62438025,185.61,185.6,5.53907944]
[1755280368259,19.7,185.61,185.6,6.20907944]
[1755280369643,19.7,185.61,185.58,0.67]
[1755280369841,19.7,185.61,185.6,5.53907944]
[1755280370638,19.7,185.61,185.6,6.20907944]
[1755280371868,19.7,185.61,185.6,11.59701047]
[1755280373156,19.7,185.61,185.6,6.20907944]
[1755280373771,19.7,185.61,185.6,5.53907944]
[1755280375073,25.78771348,185.61,185.56,0.7]
[1755280375242,20.4,185.61,185.6,5.53907944]
[1755280375558,19.7,185.61,185.6,5.53907944]
[1755280376185,25.08764075,185.61,185.6,5.53907944]
[1755280376475,25.78764075,185.61,185.6,5.53907944]
[1755280376855,25.78764075,185.61,185.59,5.53907944]
[1755280377066,0.7,185.6,185.59,5.53907944]
[1755280377952,6.08793103,185.6,185.59,5.53907944]
[1755280378861,6.08793103,185.6,185.56,0.03]
[1755280379065,6.08793103,185.6,185.59,5.53907944]
[1755280380285,19.7,185.61,185.59,5.53907944]
[1755280380484,20.4,185.61,185.56,6.08890058]
[1755280380663,20.4,185.61,185.56,5.41890058]
[1755280380985,20.4,185.61,185.6,5.53907944]
[1755280381189,28.05347485,185.61,185.6,5.53907944]
[1755280381685,27.35350118,185.61,185.6,5.53907944]
[1755280381864,19.7,185.61,185.6,6.20907944]
[1755280382058,19.7,185.61,185.6,5.53907944]
[1755280383174,33.44132933,185.61,185.59,5.53907944]
[1755280383481,0.7,185.6,185.59,5.53907944]
[1755280384385,0.7,185.6,185.56,0.7]
[1755280384686,0.7,185.6,185.59,5.53907944]
[1755280385058,4.02943415,185.6,185.57,0.67]
[1755280385252,25.08764075,185.61,185.57,0.67]
[1755280385455,25.78764075,185.61,185.6,5.53907944]
[1755280385683,33.44135784,185.61,185.6,5.53907944]
[1755280386081,33.44135784,185.61,185.57,0.67]
[1755280386288,7.65444387,185.6,185.57,0.67]
[1755280386491,19.7,185.61,185.59,5.53907944]
[1755280386666,19.7,185.61,185.6,6.20907944]
[1755280386984,19.7,185.61,185.6,5.53907944]
[1755280388583,27.1,185.61,185.6,5.53907944]
[1755280389297,27.1,185.61,185.6,6.20907944]
[1755280389462,19.7,185.61,185.6,6.20907944]
[1755280390380,19.7,185.61,185.6,5.53907944]
[1755280390583,20.4,185.61,185.6,5.53907944]
[1755280390785,19.7,185.61,185.58,0.67]
[1755280390969,19.7,185.61,185.6,5.53907944]
[1755280394387,19.7,185.61,185.58,6.0584896]
[1755280394571,19.7,185.61,185.6,5.53907944]
[1755280395709,27.1,185.61,185.6,5.53907944]
[1755280396268,19.7,185.61,185.6,6.21907944]
[1755280396470,19.7,185.61,185.6,6.24907944]
[1755280397984,19.7,185.61,185.6,5.56907944]
[1755280400270,27.36488201,185.61,185.6,5.56907944]
[1755280400704,19.7,185.61,185.6,0.03]
[1755280400875,27.3655666,185.61,185.6,5.56907944]
[1755280401883,35.4355666,185.61,185.6,0.03]
[1755280402203,28.0355666,185.61,185.6,5.56907944]
[1755280404508,33.42320735,185.61,185.6,0.03]
[1755280405398,23.32972838,185.61,185.6,0.71]
[1755280405577,27.36574017,185.61,185.6,6.24907944]
[1755280405778,23.32972838,185.61,185.6,6.24907944]
[1755280405996,23.32972838,185.61,185.6,11.63701047]
[1755280406198,19.7,185.61,185.6,11.63701047]
[1755280407705,0.06,185.64,185.63,26.0]
[1755280407879,0.06,185.64,185.63,31.53907944]
[1755280408078,0.06,185.64,185.63,32.21907944]
[1755280408292,0.06,185.64,185.63,6.21907944]
[1755280408500,0.06,185.64,185.63,5.53907944]
[1755280410000,4.09322017,185.64,185.63,5.53907944]
[1755280410606,4.09308382,185.64,185.63,5.53907944]
[1755280410906,0.06,185.64,185.63,5.53907944]
[1755280411112,0.06,185.64,185.63,6.06706028]
[1755280411413,0.06,185.64,185.63,11.60613972]
[1755280417118,0.06,185.64,185.62,26.0]
[1755280417301,0.06,185.64,185.63,5.53907944]
[1755280417718,0.73,185.64,185.63,5.53907944]
[1755280418092,8.38277829,185.64,185.62,5.53907944]
[1755280418292,13.70996996,185.63,185.61,5.53907944]
[1755280418484,4.69851668,185.62,185.61,5.53907944]
[1755280418690,8.32429654,185.62,185.6,5.56907944]
[1755280418907,5.38706028,185.63,185.6,5.56907944]
[1755280418908,3.62577986,185.61,185.6,5.56907944]
[1755280419093,4.29577986,185.61,185.6,5.56907944]
[1755280419797,9.68342061,185.61,185.6,5.56907944]
[1755280420885,9.68342061,185.61,185.6,0.03]
[1755280421087,13.71217657,185.61,185.6,0.03]
[1755280422116,3.62577986,185.61,185.6,5.56907944]
[1755280422715,9.68342061,185.61,185.6,5.56907944]
[1755280422923,9.68342061,185.61,185.6,0.03]
[1755280423093,13.71174378,185.61,185.6,0.03]
[1755280423426,14.51174378,185.61,185.6,0.03]
[1755280424526,10.88596392,185.61,185.6,0.03]
[1755280424709,14.5116144,185.61,185.6,0.03]
[1755280425695,20.05069384,185.61,185.6,0.03]
[1755280426006,14.5116144,185.61,185.6,0.03]
[1755280426195,20.05069384,185.61,185.6,0.03]
[1755280426725,14.5116144,185.61,185.6,0.03]
[1755280426898,14.5516144,185.61,185.6,0.03]
[1755280427597,8.45397365,185.61,185.6,0.03]
[1755280427920,13.8416144,185.61,185.6,0.03]
[1755280428112,9.81329123,185.61,185.6,0.03]
[1755280428306,4.42565048,185.61,185.6,0.03]
[1755280429208,0.8,185.61,185.6,6.26907944]
[1755280429392,0.06,185.64,185.6,6.26907944]
[1755280429589,0.06,185.64,185.62,5.53907944]
[1755280429989,0.06,185.64,185.62,6.23907944]
[1755280430499,0.06,185.63,185.6,5.41772328]
[1755280430717,0.06,185.63,185.62,5.53907944]
[1755280431194,0.06,185.63,185.62,6.23907944]
[1755280433326,0.06,185.63,185.62,5.53907944]
[1755280433488,0.77,185.63,185.61,5.53907944]
[1755280433895,0.71,185.62,185.6,5.56907944]
[1755280434703,0.71,185.62,185.61,5.53907944]
[1755280434900,0.71,185.61,185.6,5.56907944]
[1755280435217,0.71,185.61,185.6,0.03]
[1755280435602,6.15733753,185.63,185.6,5.56907944]
[1755280435925,8.36117717,185.62,185.6,5.56907944]
[1755280436109,3.62442672,185.61,185.6,5.56907944]
[1755280436312,0.71,185.62,185.6,5.56907944]
[1755280436718,6.09763073,185.62,185.6,0.03]
[1755280436922,3.62458223,185.61,185.6,0.03]
[1755280437433,3.62444395,185.61,185.6,0.03]
[1755280438205,4.33444395,185.61,185.6,0.03]
[1755280438606,5.13444395,185.61,185.6,0.03]
[1755280438808,10.5220847,185.61,185.6,0.03]
[1755280440299,9.8120847,185.61,185.6,0.03]
[1755280440625,4.42444395,185.61,185.6,0.03]
[1755280440816,0.8,185.61,185.6,6.26907944]
[1755280441022,0.06,185.63,185.6,6.26907944]
[1755280441221,0.06,185.63,185.62,5.53907944]
[1755280441851,0.06,185.63,185.62,6.23907944]
[1755280442727,0.06,185.63,185.62,5.53907944]
[1755280443117,0.06,185.63,185.6,0.73]
[1755280443319,0.06,185.63,185.62,5.53907944]
[1755280444015,0.06,185.63,185.61,5.53907944]
[1755280444345,6.15731473,185.63,185.6,5.56907944]
[1755280444626,0.06,185.63,185.62,5.53907944]
[1755280444832,3.68327112,185.63,185.62,5.53907944]
[1755280446632,0.06,185.63,185.62,5.53907944]
[1755280448932,0.06,185.63,185.62,6.23907944]
[1755280449361,7.46,185.63,185.62,6.23907944]
[1755280449545,7.46,185.63,185.62,11.62642994]
[1755280449749,0.06,185.63,185.62,0.7]
[1755280450070,0.06,185.63,185.62,6.23907944]
[1755280450650,0.06,185.63,185.62,11.62642994]
[1755280452030,0.06,185.63,185.62,6.23907944]
[1755280453065,0.06,185.63,185.62,5.53907944]
[1755280453450,0.06,185.63,185.61,0.03]
[1755280453645,0.06,185.63,185.62,5.53907944]
[1755280456245,0.06,185.63,185.62,6.23907944]
[1755280457647,0.06,185.63,185.62,0.7]
[1755280457849,0.06,185.63,185.62,6.23907944]
[1755280458151,7.46,185.63,185.62,6.23907944]
[1755280458467,0.06,185.63,185.62,6.23907944]
[1755280459274,0.06,185.63,185.62,5.53907944]
[1755280461181,0.06,185.63,185.62,6.23907944]
[1755280461645,0.06,185.63,185.62,5.53907944]
[1755280462468,0.06,185.63,185.61,0.03]
[1755280462672,0.06,185.63,185.62,5.53907944]
[1755280464967,7.46,185.63,185.62,5.53907944]
[1755280466074,7.46,185.63,185.61,5.56907944]
[1755280466866,7.46,185.63,185.61,0.03]
[1755280466867,4.29577824,185.62,185.61,0.03]
[1755280467065,13.86335043,185.62,185.61,0.03]
[1755280468865,19.25070093,185.62,185.61,0.03]
[1755280469249,58.73070093,185.62,185.61,0.03]
[1755280469656,58.7305784,185.62,185.61,0.03]
[1755280470169,59.5305784,185.62,185.61,0.03]
[1755280470773,53.99149896,185.62,185.61,0.03]
[1755280470948,59.5305784,185.62,185.61,0.03]
[1755280472260,58.8605784,185.62,185.61,0.03]
[1755280472978,59.5305784,185.62,185.61,0.03]
[1755280473470,53.99149896,185.62,185.61,0.03]
[1755280473658,59.5305784,185.62,185.61,0.03]
[1755280475446,59.52992009,185.62,185.61,0.03]
[1755280477050,53.99084065,185.62,185.61,0.03]
[1755280477379,59.52992009,185.62,185.61,0.03]
[1755280478167,8.45349015,185.62,185.61,0.73]
[1755280478766,4.42577824,185.62,185.61,6.26907944]
[1755280479098,0.06,185.63,185.61,6.26907944]
[1755280479273,0.06,185.63,185.62,5.53907944]
[1755280479463,3.68361591,185.63,185.62,5.53907944]
[1755280481583,3.68361591,185.63,185.62,6.23907944]
[1755280483275,3.68361591,185.63,185.62,5.53907944]
[1755280484362,3.68361591,185.63,185.61,0.03]
[1755280484690,3.62361591,185.62,185.61,0.03]
[1755280485193,0.06,185.63,185.61,5.56907944]
[1755280485387,0.06,185.63,185.62,5.53907944]
[1755280485594,3.68423569,185.63,185.62,5.53907944]
[1755280486072,3.68423569,185.63,185.62,6.25907944]
[1755280486496,3.68423569,185.63,185.62,5.53907944]
[1755280488207,9.73138914,185.63,185.61,0.03]
[1755280488388,4.28423569,185.62,185.61,0.03]
[1755280488701,13.6990886,185.62,185.61,0.03]
[1755280488877,19.23816804,185.62,185.61,0.03]
[1755280489277,15.21066563,185.62,185.61,0.03]
[1755280489475,19.23806639,185.62,185.61,0.03]
[1755280489682,58.65806639,185.62,185.61,0.03]
[1755280490476,165.28764075,185.61,185.6,0.03]
[1755280490700,179.13835664,185.61,185.6,0.03]
[1755280491032,60.34457221,185.61,185.6,0.03]
[1755280492426,26.0,185.59,185.58,0.03]
[1755280492724,15.10621557,185.58,185.57,1e-08]
[1755280492932,28.95693146,185.58,185.57,1e-08]
[1755280493725,31.11705046,185.58,185.57,1e-08]
[1755280494521,36.50556215,185.58,185.57,1e-08]
[1755280494913,41.0298101,185.58,185.57,1e-08]
[1755280495312,38.8696911,185.58,185.57,1e-08]
[1755280495903,104.2696911,185.58,185.57,1e-08]
[1755280496406,99.74544315,185.58,185.57,1e-08]
[1755280496616,45.23922758,185.58,185.57,1e-08]
[1755280496822,52.44014814,185.58,185.57,1e-08]
[1755280497027,58.63922758,185.58,185.57,1e-08]
[1755280497220,78.2696911,185.58,185.57,1e-08]
[1755280497422,73.74544315,185.58,185.57,1e-08]
[1755280497626,75.90556215,185.58,185.57,1e-08]
[1755280497801,80.42442926,185.58,185.57,1e-08]
[1755280498411,80.41246285,185.58,185.57,1e-08]
[1755280499303,41.10621557,185.57,185.56,1e-08]
[1755280499626,28.94496505,185.57,185.56,1e-08]
[1755280500131,34.33376711,185.57,185.56,1e-08]
[1755280500442,46.64529501,185.56,185.55,1e-08]
[1755280500641,7.63967004,185.56,185.55,5.53907945]
[1755280500797,5.38764075,185.61,185.55,5.53907945]
[1755280501002,13.16398302,185.6,185.55,5.53907945]
[1755280501221,7.62490358,185.59,185.56,0.72]
[1755280501502,3.61175444,185.58,185.56,0.72]
[1755280501713,3.61175444,185.57,185.56,0.72]
[1755280501940,3.61175444,185.57,185.55,5.53907945]
[1755280502123,44.78832111,185.59,185.55,5.53907945]
[1755280502327,3.61161633,185.58,185.55,5.53907945]
[1755280502526,3.61161633,185.57,185.56,0.72]
[1755280502721,3.61161633,185.57,185.55,5.53907945]
[1755280502931,44.78832111,185.59,185.55,5.53907945]
[1755280503134,3.61168789,185.58,185.55,5.53907945]
[1755280503315,3.61168789,185.57,185.55,0.72000001]
[1755280503515,9.15076733,185.56,185.55,1e-08]
[1755280503832,9.81076733,185.56,185.55,1e-08]
[1755280504031,15.1998598,185.56,185.55,1e-08]
[1755280505119,19.21326305,185.56,185.55,1e-08]
[1755280506650,60.31947862,185.56,185.55,1e-08]
[1755280508345,34.31947862,185.56,185.55,1e-08]
[1755280508521,38.83834573,185.56,185.55,1e-08]
[1755280511039,41.10621557,185.54,185.53,0.03]
[1755280511337,93.63038615,185.54,185.53,0.03]
[1755280511526,99.68005953,185.54,185.53,0.03]
[1755280512153,83.91384396,185.54,185.53,0.03]
[1755280512826,83.91384396,185.54,185.53,0.75]
[1755280513026,83.91384396,185.54,185.53,0.03]
[1755280513220,44.55038973,185.54,185.53,0.03]
[1755280513549,48.36136127,185.54,185.53,0.75]
[1755280514551,53.90044071,185.54,185.53,0.03]
[1755280515129,48.36136127,185.54,185.53,0.03]
[1755280515330,53.90044071,185.54,185.53,0.03]
[1755280515547,48.36136127,185.54,185.53,0.03]
[1755280515749,54.61044071,185.54,185.53,0.03]
[1755280515948,58.62018176,185.54,185.53,0.03]
[1755280516750,53.90044071,185.54,185.53,0.03]
[1755280516992,57.90946352,185.54,185.53,0.03]
[1755280517437,52.37038408,185.54,185.53,0.03]
[1755280517634,14.54044071,185.54,185.53,0.03]
[1755280517832,53.88044071,185.54,185.53,0.71]
[1755280518051,3.61168789,185.54,185.53,0.71]
[1755280518428,5.38938291,185.55,185.53,0.71]
[1755280518831,44.72918327,185.56,185.54,0.68]
[1755280519048,3.60724745,185.55,185.54,0.68]
[1755280519252,3.60724745,185.55,185.53,5.56907944]
[1755280519448,44.78885977,185.57,185.54,5.53907944]
[1755280519659,44.78885977,185.57,185.55,5.53907944]
[1755280519660,3.60736812,185.56,185.55,5.53907944]
[1755280519954,3.60736812,185.56,185.55,6.21907944]
[1755280520144,3.60736812,185.56,185.55,0.68]
[1755280521069,3.60736812,185.56,185.55,6.21907944]
[1755280521457,39.4,185.57,185.55,6.21907944]
[1755280521775,39.4,185.57,185.56,0.68]
[1755280521945,43.00726735,185.57,185.56,0.68]
[1755280522754,0.06,185.57,185.56,6.21907944]
[1755280523783,0.06,185.57,185.56,11.60817191]
[1755280525654,0.06,185.57,185.56,0.68]
[1755280526266,0.06,185.57,185.56,6.21907944]
[1755280526956,0.06,185.57,185.56,5.53907944]
[1755280527161,3.67068743,185.57,185.55,5.53907944]
[1755280527379,0.06,185.57,185.55,5.53907944]
[1755280528155,0.06,185.57,185.54,0.68]
[1755280528449,3.61290596,185.56,185.55,5.53907944]
[1755280528661,0.06,185.57,185.54,6.21907944]
[1755280528862,3.61290596,185.56,185.55,6.21907944]
[1755280529073,0.06,185.57,185.55,6.21907944]
[1755280529280,0.06,185.57,185.56,6.21907944]
[1755280529463,3.67433053,185.57,185.56,6.21907944]
[1755280529871,3.67433053,185.57,185.56,5.53907944]
[1755280530360,3.67433053,185.57,185.56,6.21907944]
[1755280530662,3.67433053,185.57,185.55,5.53907944]
[1755280530861,3.61433053,185.56,185.55,5.53907944]
[1755280532000,9.00344992,185.56,185.55,5.53907944]
[1755280533883,9.00344992,185.56,185.53,0.03]
[1755280534189,3.61433053,185.55,185.53,0.03]
[1755280534395,3.61433053,185.54,185.53,0.03]
[1755280534562,3.61433053,185.54,185.53,5.56907944]
[1755280534764,0.06,185.57,185.53,5.56907944]
[1755280534989,0.06,185.57,185.56,5.53907944]
[1755280535167,7.70771112,185.57,185.56,5.53907944]
[1755280535374,7.70771112,185.57,185.56,6.21907944]
[1755280535565,7.70771112,185.57,185.56,5.53907944]
[1755280535889,13.09651318,185.57,185.54,6.21907944]
[1755280536074,3.6226252,185.56,185.53,5.56907944]
[1755280536273,3.6226252,185.55,185.53,6.24907944]
[1755280536476,3.6226252,185.54,185.53,6.24907944]
[1755280536676,3.6226252,185.54,185.53,5.56907944]
[1755280536889,3.6226252,185.54,185.53,0.03]
[1755280537574,3.6226252,185.54,185.53,5.56907944]
[1755280538099,3.6226252,185.54,185.53,0.71]
[1755280538270,3.6226252,185.54,185.53,6.24907944]
[1755280541489,0.06,185.57,185.53,11.63904332]
[1755280541680,0.06,185.57,185.56,5.53907944]
[1755280541869,3.68371206,185.57,185.56,5.53907944]
[1755280542067,3.68371206,185.57,185.56,6.21907944]
[1755280542297,0.06,185.57,185.56,6.21907944]
[1755280542781,0.06,185.57,185.56,21.32529501]
[1755280543079,0.06,185.59,185.58,41.10621557]
[1755280543289,0.06,185.62,185.6,41.10621557]
[1755280543500,0.06,185.62,185.61,6.07784351]
[1755280543697,0.06,185.62,185.61,6.75784351]
[1755280544103,0.06,185.62,185.61,21.86405908]
[1755280544812,0.06,185.62,185.61,25.55865106]
[1755280545110,0.06,185.62,185.61,30.94629181]
[1755280546706,0.06,185.62,185.61,30.40752774]
[1755280548487,0.06,185.62,185.61,30.94629181]
[1755280550306,0.06,185.64,185.61,30.94629181]
[1755280550307,0.06,185.64,185.62,20.49356607]
[1755280550488,0.06,185.68,185.64,41.10621557]
[1755280550686,0.06,185.68,185.66,41.10621557]
[1755280550889,0.06,185.69,185.66,50.33988699]
[1755280551119,0.06,185.69,185.68,9.23367142]
[1755280551621,0.06,185.69,185.68,9.94367142]
[1755280551800,0.06,185.7,185.69,59.57355841]
[1755280552001,0.06,185.72,185.71,41.10621557]
[1755280552215,0.06,185.74,185.73,5.3841598]
[1755280552409,0.06,185.74,185.73,29.72404679]
[1755280552595,0.06,185.74,185.73,30.43404679]
[1755280553396,0.2,185.76,185.74,15.10621557]
[1755280553617,0.2,185.76,185.75,48.43367142]
[1755280553814,0.2,185.76,185.75,49.14367142]
[1755280554540,0.2,185.76,185.75,54.5272515]
[1755280555898,0.2,185.76,185.75,69.63346707]
[1755280556707,0.2,185.76,185.75,56.43346707]
[1755280556904,0.2,185.76,185.75,80.5072515]
[1755280557097,0.2,185.76,185.75,79.7972515]
[1755280557417,0.2,185.76,185.75,80.5072515]
[1755280557617,0.2,185.76,185.75,35.23367142]
[1755280557823,0.2,185.76,185.75,74.41367142]
[1755280557993,0.2,185.76,185.75,65.18]
[1755280558195,0.2,185.76,185.75,79.7972515]
[1755280558407,0.2,185.76,185.75,80.5072515]
[1755280559395,0.06,185.8,185.78,26.0]
[1755280559620,0.06,185.8,185.79,48.41367142]
[1755280559927,0.06,185.8,185.79,49.12367142]
[1755280560511,0.06,185.8,185.79,39.18]
[1755280560512,0.75,185.8,185.79,39.18]
[1755280560710,4.33020018,185.8,185.78,48.39367142]
[1755280560923,0.75,185.8,185.79,9.23367142]
[1755280561507,0.06,185.8,185.78,39.16]
[1755280561829,0.06,185.8,185.79,9.23367142]
[1755280563206,0.06,185.8,185.79,14.61609243]
[1755280563413,0.06,185.8,185.79,15.32609243]
[1755280563703,0.69,185.84,185.79,15.32609243]
[1755280563708,5.37807895,185.94,185.82,41.10621557]
[1755280563909,0.06,185.84,185.83,54.97621557]
[1755280564226,0.06,185.84,185.83,63.49988699]
[1755280564430,0.06,185.84,185.83,64.20988699]
[1755280564917,0.06,185.84,185.83,69.59114943]
[1755280565109,0.06,185.84,185.83,54.48493386]
[1755280565426,0.06,185.84,185.83,48.39367142]
[1755280565827,8.29115204,185.84,185.82,9.23367142]
[1755280566024,8.23115204,185.83,185.81,39.14]
[1755280566229,0.69,185.82,185.81,39.14]
[1755280566432,0.69,185.82,185.81,48.37367142]
[1755280566641,0.69,185.82,185.81,44.67188629]
[1755280566942,0.06,185.84,185.81,44.67188629]
[1755280567158,0.75,185.84,185.83,5.53188629]
[1755280567320,0.75,185.84,185.82,5.53188629]
[1755280569121,0.75,185.84,185.81,5.53188629]
[1755280569340,0.69,185.83,185.81,5.53188629]
[1755280569948,0.06,185.84,185.81,5.53188629]
[1755280570124,0.06,185.84,185.82,5.53188629]
[1755280571757,0.75,185.84,185.82,5.53188629]
[1755280573346,0.06,185.84,185.82,5.53188629]
[1755280577948,0.06,185.84,185.81,5.38183327]
[1755280578159,0.06,185.84,185.81,6.05183327]
[1755280578456,0.06,185.84,185.81,11.58371956]
[1755280578834,0.68,185.83,185.78,0.67]
[1755280579049,7.53525621,185.82,185.78,31.53188629]
[1755280579256,7.53525621,185.81,185.79,5.53188629]
[1755280579436,0.74,185.84,185.8,5.53188629]
[1755280579626,8.2194269,185.83,185.8,5.53188629]
[1755280579826,7.5394269,185.82,185.8,0.03]
[1755280580058,0.06,185.84,185.81,6.20188629]
[1755280580254,0.06,185.84,185.83,5.53188629]
[1755280580546,0.06,185.84,185.82,0.67]
[1755280580547,7.60157494,185.84,185.82,0.67]
[1755280580854,0.06,185.84,185.82,0.67]
[1755280581060,13.7537267,185.83,185.8,0.03]
[1755280581366,10.91372795,185.81,185.8,0.03]
[1755280581658,18.45556836,185.81,185.8,0.03]
[1755280581958,13.60368207,185.81,185.8,0.03]
[1755280582159,8.22184041,185.81,185.8,0.03]
[1755280582537,7.54184041,185.81,185.8,0.03]
[1755280582754,7.54184041,185.81,185.8,6.23188629]
[1755280582755,3.96930508,185.81,185.8,6.23188629]
[1755280582954,0.06,185.84,185.8,6.23188629]
[1755280583148,7.55272538,185.83,185.81,5.53188629]
[1755280583465,7.55272538,185.82,185.8,5.56188629]
[1755280583677,7.55272538,185.81,185.8,5.56188629]
[1755280583833,7.55272538,185.81,185.8,0.03]
[1755280584036,7.55272538,185.81,185.8,5.56188629]
[1755280584484,8.23272538,185.81,185.8,0.03]
[1755280584760,13.76461167,185.81,185.8,0.03]
[1755280585160,18.27737528,185.81,185.8,0.03]
[1755280585466,23.65921694,185.81,185.8,0.03]
[1755280585670,19.14645333,185.81,185.78,0.03]
[1755280585839,10.0181476,185.79,185.78,0.03]
[1755280586041,13.08461167,185.79,185.78,0.03]
[1755280586241,13.76461167,185.79,185.76,0.03]
[1755280586544,10.02416187,185.77,185.76,0.03]
[1755280586761,17.57688725,185.77,185.76,0.03]
[1755280586937,13.76461167,185.77,185.76,0.03]
[1755280587358,19.14761215,185.77,185.76,0.03]
[1755280587973,13.61572586,185.77,185.76,0.03]
[1755280588269,19.14761215,185.77,185.76,0.03]
[1755280588661,12.73203774,185.77,185.76,0.03]
[1755280589050,7.55272538,185.77,185.76,0.03]
[1755280589352,7.55272538,185.77,185.76,11.61517655]
[1755280589746,7.55272538,185.77,185.76,6.08329026]
[1755280590072,7.55272538,185.77,185.76,11.61517655]
[1755280590288,7.55272538,185.77,185.76,32.25327841]
[1755280590570,0.06,185.84,185.81,5.53188629]
[1755280590771,0.06,185.84,185.83,9.21543623]
[1755280590982,0.06,185.84,185.8,39.75]
[1755280591182,0.06,185.84,185.82,9.21543623]
[1755280591484,0.06,185.84,185.83,14.59669867]
[1755280591871,0.06,185.84,185.83,15.26669867]
[1755280592586,0.06,185.84,185.83,9.88543623]
[1755280592881,0.06,185.84,185.83,9.21543623]
[1755280594486,0.06,185.84,185.83,9.88543623]
[1755280595081,0.06,185.84,185.83,24.9916518]
[1755280595885,0.06,185.84,185.83,30.37291424]
[1755280597093,1e-08,185.84,185.83,30.37291424]
[1755280597275,0.06,185.86,185.85,41.10621557]
[1755280597593,0.06,185.86,185.85,98.59708803]
[1755280597884,0.06,185.88,185.87,20.48631994]